Workbook

Sheet прил 1
I3: Приложение 1 к Национальному стандарту бухгалтерского учета и отчетности «Индивидуальная бухгалтерская отчетность» 12.12.2016 № 104 | W3: Заполнение форм начинается с указания периода, за который оформляется отчетность. Для этого, в ячейку слева, окрашенную в желтый цвет, введите дату начала отчетного периода, за который заполняется баланс.
M4: Форма | U4: 2021-12-31
C5: БУХГАЛТЕРСКИЙ БАЛАНС | U5: 2022-01-01
F6: на | G6: =DATE(YEAR(U6),MONTH(U6),DAY(U6)) -> 2022-12-31 | U6: 2022-12-31 | W6: В ячейку слева, окрашенную в бледно-зеленый цвет, введите дату окончания отчетного периода, за который заполняется баланс.
C8: Организация | F8: ОАО "Универмаг "Центральный" | U8: =DAY(U5) -> 1 | V8: =DAY(U6) -> 31
C9: Учетный номер плательщика | F9: 700002659 | U9: =MONTH(U5) -> 1 | V9: =MONTH(U6) -> 12 | W9: =IF(U9=1,"январь",IF(U9=2,"февраль",IF(U9=3,"март",IF(U9=4,"апрель",IF(U9=5,"май",IF(U9=6,"июнь",IF(U9=7,"июль",W10))))))) -> январь | X9: =IF(V9=1,"январь",IF(V9=2,"февраль",IF(V9=3,"март",IF(V9=4,"апрель",IF(V9=5,"май",IF(V9=6,"июнь",IF(V9=7,"июль",X10))))))) -> декабрь
C10: Вид экономической деятельности | F10: Розничная торговля | U10: =YEAR(U5) -> 2022 | V10: =YEAR(U6) -> 2022 | W10: =IF(U9=8,"август",IF(U9=9,"сентябрь",IF(U9=10,"октябрь",IF(U9=11,"ноябрь",IF(U9=12,"декабрь",0))))) -> 0 | X10: =IF(V9=8,"август",IF(V9=9,"сентябрь",IF(V9=10,"октябрь",IF(V9=11,"ноябрь",IF(V9=12,"декабрь",0))))) -> декабрь
C11: Организационно-правовая форма | F11: Открытое акционерное общество
C12: Орган управления | F12: Управление торговли и услуг Могилевского горисполкома
C13: Единица измерения | F13: тыс. руб.
C14: Адрес | F14: 212030, г. Могилев, ул. Первомайская, 61
I16: Дата утверждения
I17: Дата отправки
I18: Дата принятия
C20: Активы | H20: Код строки | I20: На | J20: =U6 -> 2022-12-31 | N20: На | O20: =U4 -> 2021-12-31
I21: =U6 -> 2022-12-31
C22: 1 | H22: 2 | I22: 3 | N22: 4
C23: I. ДОЛГОСРОЧНЫЕ АКТИВЫ
C24: Основные средства | H24: 110 | I24: 5984 | N24: 3090 | U24: 01 ,02
C25: Нематериальные активы | H25: 120 | I25: 30 | N25: 30 | U25: 04, 05
C26: Доходные вложения в материальные активы | H26: 130 | I26: =SUM(I28:M30) -> 659 | N26: =SUM(N27:R30) -> 659 | U26: 03, 02
C27: в том числе:
C28: инвестиционная недвижимость | H28: 131 | I28: 659 | N28: 659
C29: предметы финансовой аренды (лизинга) | H29: 132 | I29: 0 | N29: 0
C30: прочие доходные вложения в материальные активы | H30: 133 | I30: 0 | N30: 0
C31: Вложения в долгосрочные активы | H31: 140 | I31: 150 | N31: 26 | U31: 08, 07
C32: Долгосрочные финансовые вложения | H32: 150 | I32: 227 | N32: 225 | U32: 06
C33: Отложенные налоговые активы | H33: 160 | I33: 0 | N33: 0 | U33: 09
C34: Долгосрочная дебиторская задолженность | H34: 170 | I34: 0 | N34: 0 | U34: 60, 62, 76 | V34: 63
C35: Прочие долгосрочные активы | H35: 180 | I35: 34 | N35: 0 | U35: 97
C36: ИТОГО по разделу I | H36: 190 | I36: =SUM(I24:M26,I31:M35) -> 7084 | N36: =SUM(N24:R26,N31:R35) -> 4030
C37: II. КРАТКОСРОЧНЫЕ АКТИВЫ
C38: Запасы | H38: 210 | I38: =SUM(I40:M45) -> 8004 | N38: =SUM(N40:R45) -> 7213
C39: в том числе:
C40: материалы | H40: 211 | I40: 262 | N40: 228 | U40: 10, 15, 16
C41: животные на выращивании и откорме | H41: 212 | I41: 0 | N41: 0 | U41: 11
C42: незавершенное производство | H42: 213 | I42: - | N42: - | U42: 20, 21, 23, 29
C43: готовая продукция и товары | H43: 214 | I43: 7742 | N43: 6985 | U43: 20,43, 41, 44 | V43: 42
C44: товары отгруженные | H44: 215 | I44: 0 | N44: 0 | U44: 45
C45: прочие запасы | H45: 216 | I45: 0 | N45: 0
C46: Долгосрочные активы, предназначенные для реализации | H46: 220 | I46: 0 | N46: 0 | U46: 47
C47: Расходы будущих периодов | H47: 230 | I47: 12 | N47: 39 | U47: 97
C48: Налог на добавленную стоимость по приобретенным товарам, работам, услугам | H48: 240 | I48: 5 | N48: 15 | U48: 18
C49: Краткосрочная дебиторская задолженность | H49: 250 | I49: 1122 | N49: 722 | U49: 60, 62, 73,76 | V49: 63
C50: Краткосрочные финансовые вложения | H50: 260 | I50: - | N50: - | U50: 58, 06 | V50: 59
C51: Денежные средства и эквиваленты денежных средств | H51: 270 | I51: 847 | N51: 701 | U51: 50, 51, 52, 55, 57, 58
C52: Прочие краткосрочные активы | H52: 280 | I52: - | N52: 0 | U52: 94
C53: ИТОГО по разделу II | H53: 290 | I53: =SUM(I38,I46:M52) -> 9990 | N53: =SUM(N38,N46:R52) -> 8690 | U53: =IF(I54-I96=0," ",IF(U54<0,CONCATENATE("Актив баланса на конец отчетного периода меньше пассива на ",-U54," тыс.руб."),CONCATENATE("Актив баланса на конец отчетного периода превышает пассив на ",U54," тыс.руб."))) -> 
C54: БАЛАНС | H54: 300 | I54: =I36+I53 -> 17074 | N54: =N36+N53 -> 12720 | U54: =IF(ABS(I54-I96)>0,I54-I96,0) -> 0 | V54: =IF(ABS(N54-N96)>0,N54-N96,0) -> 0
V55: =IF(N54-N96=0," ",IF(V54<0,CONCATENATE("Актив баланса на начало отчетного периода меньше пассива на ",-V54," тыс.руб."),CONCATENATE("Актив баланса на начало отчетного периода превышает пассив на ",V54," тыс.руб."))) -> 
C57: Собственный капитал и обязательства | H57: Код строки | I57: На | J57: =U6 -> 2022-12-31 | N57: На | O57: 31 декабря 2021 г.
C58: 1 | I58: =U6 -> 2022-12-31
C59: 1 | H59: 2 | I59: 3 | N59: 4
C60: III. СОБСТВЕННЫЙ КАПИТАЛ
C61: Уставный капитал | H61: 410 | I61: 408 | N61: 408 | U61: 80
C62: Неоплаченная часть уставного капитала | H62: 420 | I62: 0 | N62: 0 | U62: 75 (75-1)
C63: Собственные акции (доли в уставном капитале) | H63: 430 | I63: 0 | N63: 0 | U63: 81
C64: Резервный капитал | H64: 440 | I64: 25 | N64: 25 | U64: 82
C65: Добавочный капитал | H65: 450 | I65: 4968 | N65: 2177 | U65: 83
C66: Нераспределенная прибыль (непокрытый убыток) | H66: 460 | I66: 4161 | N66: 3720 | U66: 84
C67: Чистая прибыль (убыток) отчетного периода | H67: 470 | I67: 0 | N67: 0 | U67: 99
C68: Целевое финансирование | H68: 480 | I68: 0 | N68: 0 | U68: 86
C69: ИТОГО по разделу III | H69: 490 | I69: =SUM(I61,I64:M68)-I62-I63 -> 9562 | N69: =SUM(N61,N64:R68)-N62-N63 -> 6330
C70: IV. ДОЛГОСРОЧНЫЕ ОБЯЗАТЕЛЬСТВА
C71: Долгосрочные кредиты и займы | H71: 510 | I71: 620 | N71: - | U71: 67
C72: Долгосрочные обязательства по лизинговым платежам | H72: 520 | I72: 0 | N72: 0 | U72: 76
C73: Отложенные налоговые обязательства | H73: 530 | I73: 0 | N73: 0 | U73: 65
C74: Доходы будущих периодов | H74: 540 | I74: - | N74: - | U74: 98
C75: Резервы предстоящих платежей | H75: 550 | I75: 0 | N75: 0 | U75: 96
C76: Прочие долгосрочные обязательства | H76: 560 | I76: 0 | N76: 0
C77: ИТОГО по разделу IV | H77: 590 | I77: =SUM(I71:M76) -> 620 | N77: =SUM(N71:R76) -> 0
C78: V. КРАТКОСРОЧНЫЕ ОБЯЗАТЕЛЬСТВА
C79: Краткосрочные кредиты и займы | H79: 610 | I79: 0 | N79: 0 | U79: 66
C80: Краткосрочная часть долгосрочных обязательств | H80: 620 | I80: 2 | N80: 1
C81: Краткосрочная кредиторская задолженность | H81: 630 | I81: =SUM(I83:M90) -> 6890 | N81: =SUM(N83:R90) -> 6389
C82: в том числе:
C83: поставщикам, подрядчикам, исполнителям | H83: 631 | I83: 5972 | N83: 5652 | U83: 60
C84: по авансам полученным | H84: 632 | I84: 195 | N84: 169 | U84: 62
C85: по налогам и сборам | H85: 633 | I85: 460 | N85: 347 | U85: 68
C86: по социальному страхованию и обеспечению | H86: 634 | I86: 49 | N86: 41 | U86: 69
C87: по оплате труда | H87: 635 | I87: 168 | N87: 136 | U87: 70, 76
C88: по лизинговым платежам | H88: 636 | I88: 0 | N88: 0 | U88: 76
C89: собственнику имущества (учредителям, участникам) | H89: 637 | I89: 40 | N89: 38 | U89: 70, 75
C90: прочим кредиторам | H90: 638 | I90: 6 | N90: 6 | U90: 71, 73,76
C91: Обязательства, предназначенные для реализации | H91: 640 | I91: 0 | N91: 0 | U91: 76
C92: Доходы будущих периодов | H92: 650 | I92: - | N92: - | U92: 98
C93: Резервы предстоящих платежей | H93: 660 | I93: - | N93: - | U93: 96
C94: Прочие краткосрочные обязательства | H94: 670 | I94: - | N94: -
C95: ИТОГО по разделу V | H95: 690 | I95: =SUM(I79:M81,I91:M94) -> 6892 | N95: =SUM(N79:R81,N91:R94) -> 6390 | U95: =IF(I54-I96=0," ",IF(U96<0,CONCATENATE("Пассив баланса на конец отчетного периода меньше актива на ",-U96," тыс.руб."),CONCATENATE("Пассив баланса на конец отчетного периода превышает актив на ",U96," тыс.руб."))) -> 
C96: БАЛАНС | H96: 700 | I96: =I69+I77+I95 -> 17074 | N96: =N69+N77+N95 -> 12720 | U96: =IF(ABS(-I54+I96)>0.9,-I54+I96,0) -> 0 | V96: =IF(ABS(-N54+N96)>0.9,-N54+N96,0) -> 0
V97: =IF(N54-N96=0," ",IF(V96<0,CONCATENATE("Пассив баланса на начало отчетного периода меньше актива на ",-V96," тыс.руб."),CONCATENATE("Пассив баланса на начало отчетного периода превышает актив на ",V96," тыс.руб."))) -> 
C98: Руководитель | I98: В.С.Амбарцумян
F99: (подпись) | I99: (инициалы, фамилия)
C100: Главный бухгалтер | I100: М.А.Краснова
F101: (подпись) | I101: (инициалы, фамилия)
C102: 2023-02-22

Sheet Приложение (hidden)
A1: =ROW() -> 1 | B1: А. Сельское, лесное и рыбное хозяйство, 011-017 | C1: 1.5 | D1: 0.2
A2: =ROW() -> 2 | B2: А. Сельское, лесное и рыбное хозяйство, 021-024 | C2: 1.5 | D2: 0.2
A3: =ROW() -> 3 | B3: А. Сельское, лесное и рыбное хозяйство, 031-032 | C3: 1.5 | D3: 0.2
A4: =ROW() -> 4 | B4: В. Горнодобывающая промышленность, 051-052, 061-062, 071-072, 081, 089, 091 | C4: 1.7 | D4: 0.3
A5: =ROW() -> 5 | B5: В. Горнодобывающая промышленность, 099 | C5: 1.2 | D5: 0.15
A6: =ROW() -> 6 | B6: С. Обрабатывающая промышленность, 101, 104-109 | C6: 1.3 | D6: 0.2
A7: =ROW() -> 7 | B7: С. Обрабатывающая промышленность, 102-103 | C7: 1.7 | D7: 0.3
A8: =ROW() -> 8 | B8: С. Обрабатывающая промышленность, 110, 120 | C8: 1.7 | D8: 0.3
A9: =ROW() -> 9 | B9: С. Обрабатывающая промышленность, 131-133, 139, 141-143, 151-152 | C9: 1.3 | D9: 0.2
A10: =ROW() -> 10 | B10: С. Обрабатывающая промышленность, 161-162, 171-172, 181-182 | C10: 1.3 | D10: 0.2
A11: =ROW() -> 11 | B11: С. Обрабатывающая промышленность, 191 | C11: 1.4 | D11: 0.2
A12: =ROW() -> 12 | B12: С. Обрабатывающая промышленность, 192 | C12: 1.7 | D12: 0.3
A13: =ROW() -> 13 | B13: С. Обрабатывающая промышленность, подкласс 19201 | C13: 1.4 | D13: 0.2
A14: =ROW() -> 14 | B14: С. Обрабатывающая промышленность, 201-206, 211-212 | C14: 1.4 | D14: 0.2
A15: =ROW() -> 15 | B15: С. Обрабатывающая промышленность, 221-222 | C15: 1.3 | D15: 0.2
A16: =ROW() -> 16 | B16: С. Обрабатывающая промышленность, 231-237, 239 | C16: 1.2 | D16: 0.15
A17: =ROW() -> 17 | B17: С. Обрабатывающая промышленность, 241, 242, 244, 245 | C17: 1.3 | D17: 0.2
A18: =ROW() -> 18 | B18: С. Обрабатывающая промышленность, 243 | C18: 1.2 | D18: 0.15
A19: =ROW() -> 19 | B19: С. Обрабатывающая промышленность, 251 | C19: 1.2 | D19: 0.15
A20: =ROW() -> 20 | B20: С. Обрабатывающая промышленность, 252-257, 259 | C20: 1.3 | D20: 0.2
A21: =ROW() -> 21 | B21: С. Обрабатывающая промышленность, 261-267 | C21: 1.3 | D21: 0.2
A22: =ROW() -> 22 | B22: С. Обрабатывающая промышленность, 268 | C22: 1.4 | D22: 0.2
A23: =ROW() -> 23 | B23: С. Обрабатывающая промышленность, 271-275, 279 | C23: 1.3 | D23: 0.2
A24: =ROW() -> 24 | B24: С. Обрабатывающая промышленность, 281-282, 284, 289 | C24: 1.3 | D24: 0.2
A25: =ROW() -> 25 | B25: С. Обрабатывающая промышленность, 283 | C25: 1.6 | D25: 0.1
A26: =ROW() -> 26 | B26: С. Обрабатывающая промышленность, 291-293, 301-304, 309 | C26: 1.3 | D26: 0.2
A27: =ROW() -> 27 | B27: С. Обрабатывающая промышленность, 310, 321-322, 324, 329 | C27: 1.7 | D27: 0.3
A28: =ROW() -> 28 | B28: С. Обрабатывающая промышленность, 323, 325, 331-332 | C28: 1.3 | D28: 0.2
A29: =ROW() -> 29 | B29: D. Снабжение электроэнергией, газом, паром, горячей водой и кондиционированным воздухом, 351 | C29: 1.1 | D29: 0.25
A30: =ROW() -> 30 | B30: D. Снабжение электроэнергией, газом, паром, горячей водой и кондиционированным воздухом, 352 | C30: 1.01 | D30: 0.3
A31: =ROW() -> 31 | B31: D. Снабжение электроэнергией, газом, паром, горячей водой и кондиционированным воздухом, 353 | C31: 1.1 | D31: 0.1
A32: =ROW() -> 32 | B32: 5. Е. Водоснабжение; сбор, обработка и удаление отходов, деятельность по ликвидации загрязнений, 360-370, 381-382, 390 | C32: 1.1 | D32: 0.1
A33: =ROW() -> 33 | B33: 5. Е. Водоснабжение; сбор, обработка и удаление отходов, деятельность по ликвидации загрязнений, 383 | C33: 1.7 | D33: 0.3
A34: =ROW() -> 34 | B34: 6. F. Строительство, 411 | C34: 1.1 | D34: 0.1
A35: =ROW() -> 35 | B35: 6. F. Строительство, 412, 421-422, 429, 431-433, 439 | C35: 1.2 | D35: 0.15
A36: =ROW() -> 36 | B36: 7. G. Оптовая и розничная торговля; ремонт автомобилей и мотоциклов, 451-454, 461-467, 469, 471-479 | C36: 1 | D36: 0.1
A37: =ROW() -> 37 | B37: 8. H. Транспортная деятельность, складирование, почтовая и курьерская деятельность, 491-495, 501-504, 511-512, 521-522 | C37: 1.15 | D37: 0.15
A38: =ROW() -> 38 | B38: 8. H. Транспортная деятельность, складирование, почтовая и курьерская деятельность, 531-532 | C38: 1 | D38: 0.05
A39: =ROW() -> 39 | B39: 9. I. Услуги по временному проживанию и питанию, 551-553, 559 | C39: 1.1 | D39: 0.1
A40: =ROW() -> 40 | B40: 9. I. Услуги по временному проживанию и питанию, 561-563 | C40: 1 | D40: 0.1
A41: =ROW() -> 41 | B41: 10. J. Информация и связь, 581 | C41: 1.1 | D41: 0.15
A42: =ROW() -> 42 | B42: 10. J. Информация и связь, 582 | C42: 1.3 | D42: 0.2
A43: =ROW() -> 43 | B43: 10. J. Информация и связь, 591 | C43: 1.1 | D43: 0.1
A44: =ROW() -> 44 | B44: 10. J. Информация и связь, 592 | C44: 1.1 | D44: 0.15
A45: =ROW() -> 45 | B45: 10. J. Информация и связь, 601-602, 611-613, 619 | C45: 1.1 | D45: 0.15
A46: =ROW() -> 46 | B46: 10. J. Информация и связь, 620, 631 | C46: 1.3 | D46: 0.2
A47: =ROW() -> 47 | B47: 10. J. Информация и связь, 639 | C47: 1.1 | D47: 0.1
A48: =ROW() -> 48 | B48: K. Финансовая и страховая деятельность, 641-643 | C48: 1.5 | D48: 0.2
A49: =ROW() -> 49 | B49: K. Финансовая и страховая деятельность, 649 | C49: 1.1 | D49: 0.1
A50: =ROW() -> 50 | B50: K. Финансовая и страховая деятельность, 651-653, 661-663 | C50: 1.5 | D50: 0.2
A51: =ROW() -> 51 | B51: L. Операции с недвижимым имуществом, 681-682 | C51: 1.1 | D51: 0.1
A52: =ROW() -> 52 | B52: L. Операции с недвижимым имуществом, 683 | C52: 1 | D52: 0.05
A53: =ROW() -> 53 | B53: М. Профессиональная, научная и техническая деятельность, 691-692, 701-702, 711 | C53: 1 | D53: 0.05
A54: =ROW() -> 54 | B54: М. Профессиональная, научная и техническая деятельность, 712 | C54: 1.2 | D54: 0.15
A55: =ROW() -> 55 | B55: М. Профессиональная, научная и техническая деятельность, 721-722 | C55: 1.15 | D55: 0.2
A56: =ROW() -> 56 | B56: М. Профессиональная, научная и техническая деятельность, 731 | C56: 1.2 | D56: 0.15
A57: =ROW() -> 57 | B57: М. Профессиональная, научная и техническая деятельность, 732 | C57: 1 | D57: 0.05
A58: =ROW() -> 58 | B58: М. Профессиональная, научная и техническая деятельность, 741, 743, 749 | C58: 1.2 | D58: 0.15
A59: =ROW() -> 59 | B59: М. Профессиональная, научная и техническая деятельность, 742 | C59: 1.1 | D59: 0.1
A60: =ROW() -> 60 | B60: М. Профессиональная, научная и техническая деятельность, 750 | C60: 1.5 | D60: 0.2
A61: =ROW() -> 61 | B61: 14. N. Деятельность в сфере административных и вспомогательных услуг, 771-773 | C61: 1.1 | D61: 0.1
A62: =ROW() -> 62 | B62: 14. N. Деятельность в сфере административных и вспомогательных услуг, 774 | C62: 1 | D62: 0.05
A63: =ROW() -> 63 | B63: 14. N. Деятельность в сфере административных и вспомогательных услуг, 781-783 | C63: 1.2 | D63: 0.15
A64: =ROW() -> 64 | B64: 14. N. Деятельность в сфере административных и вспомогательных услуг, 791, 799 | C64: 1.15 | D64: 0.15
A65: =ROW() -> 65 | B65: 14. N. Деятельность в сфере административных и вспомогательных услуг, 801-803 | C65: 1.2 | D65: 0.15
A66: =ROW() -> 66 | B66: 14. N. Деятельность в сфере административных и вспомогательных услуг, 811-812 | C66: 1.1 | D66: 0.1
A67: =ROW() -> 67 | B67: 14. N. Деятельность в сфере административных и вспомогательных услуг, 813 | C67: 1.5 | D67: 0.2
A68: =ROW() -> 68 | B68: 14. N. Деятельность в сфере административных и вспомогательных услуг, 821-823, 829 | C68: 1.2 | D68: 0.15
A69: =ROW() -> 69 | B69: 15. Q. Здравоохранение и социальные услуги, 861 | C69: 1.1 | D69: 0.1
A70: =ROW() -> 70 | B70: 16. R. Творчество, спорт, развлечения и отдых, 931 | C70: 1.1 | D70: 0.1
A71: =ROW() -> 71 | B71: 17. S. Предоставление прочих видов услуг, 941-942, 949 | C71: 1.1 | D71: 0.1
A72: =ROW() -> 72 | B72: 17. S. Предоставление прочих видов услуг, 951 | C72: 1.3 | D72: 0.2
A73: =ROW() -> 73 | B73: 17. S. Предоставление прочих видов услуг, 952 | C73: 1 | D73: 0.1
A74: =ROW() -> 74 | B74: 17. S. Предоставление прочих видов услуг, 960 | C74: 1.1 | D74: 0.1
A75: =ROW() -> 75 | B75: 18. Прочие виды экономической деятельности | C75: 1.5 | D75: 0.2
